Cogmind - Beta 13 X1 @@@ ROGUE MODE // 2023.06.29 @ 13:09:47 Player: btmk16 Result: Destroyed by IN-WXM(R) with Subdweller Machine Gun Performance ------------- Evolutions (0) 0 Regions Visited (2) 400 Robots Destroyed (17) 85 Value Destroyed (348) 348 Prototype IDs (0) 0 Alien Tech Used (0) 0 Bonus (0) 0 TOTAL SCORE: 833 Bonus ------- None Cogmind --------- Core Integrity 0/250 Matter 232/300 Energy 200/200 System Corruption 0% Temperature Cool (0) Movement Rolling (95) Ox1 Location -10/Subcaves Parts ------- > --- POWER (1) -------- Subdweller Power Source > --- PROPULSION (2) --- Aluminum Leg Wheel > --- UTILITY (2) ------ Small Storage Unit > --- WEAPON (2) ------- Barrage Gun Mace > --- INVENTORY (8) ---- Aluminum Leg Wheel Medium Laser Beam Cannon Light Assault Rifle Flamer Peak State ------------ > --- POWER ------------ Subdweller Power Source > --- PROPULSION ------- Aluminum Leg Wheel > --- UTILITY ---------- Small Storage Unit > --- WEAPON ----------- Barrage Gun Mace > --- INVENTORY -------- Aluminum Leg Wheel Medium Laser Beam Cannon Light Assault Rifle Flamer [Rating: 10] Favorites ----------- Power Ion Engine Engine Ion Engine Propulsion Light Treads Treads Light Treads Leg Aluminum Leg Wheel Wheel Utility Small Storage Unit Storage Small Storage Unit Weapon Mace Energy Gun Small Laser Ballistic Gun Light Assault Rifle Special Weapon Flamer Impact Weapon Mace Build | -11 -10 -10 ------- Run | Jun Mat Sub Slots Evolved . | . . . Power . | . . . Propulsion . | . . . Utility . | . . . Weapon . | . . . Parts Attached 19 | 7 3 9 Power 3 | 2 . 1 Engine 3 | 2 . 1 Core . | . . . Reactor . | . . . Propulsion 4 | 2 . 2 Treads 2 | 2 . . Leg 1 | . . 1 Wheel 1 | . . 1 Hover . | . . . Flight . | . . . Utility 1 | 1 . . Device . | . . . Storage 1 | 1 . . Processor . | . . . Hackware . | . . . Protection . | . . . Artifact . | . . . Weapon 11 | 2 3 6 Energy Gun 1 | 1 . . Energy Cannon . | . . . Ballistic Gun 5 | 1 1 3 Ballistic Cannon . | . . . Launcher . | . . . Special Weapon 1 | . . 1 Impact Weapon 4 | . 2 2 Slashing Weapon . | . . . Piercing Weapon . | . . . Special Melee Weapon . | . . . Unidentified Prototypes . | . . . Parts Lost 3 | . . 3 Power 1 | . . 1 Propulsion 2 | . . 2 Utility . | . . . Weapon . | . . . Highest Loss Streak 1 | . . 1 To Critical Strikes . | . . . Average Slot Usage (%) 81 | . 85 76 Engine 12 | . 14 9 Treads 25 | . 28 22 Storage 14 | . 14 14 Energy Gun 3 | . 5 . Ballistic Gun 7 | . 5 8 Special Weapon 3 | . . 8 Impact Weapon 14 | . 16 10 Naked Turns . | . . . Heaviest Build 15 | 12 14 15 Greatest Support 40 | 40 40 40 Greatest Overweight (x) 1 | . . 1 Average Overweight (x) . | . . . Largest Inventory Capacity 8 | 8 8 8 Average Capacity 7 | 6 8 8 Most Carried 8 | 6 8 8 Average Carried 7 | 4 7 7 Final Capacity 8 | 8 8 8 Final Carried 8 | 6 8 6 Class Distribution -------------------- 100% | Mutant Dominant Class ---------------- Mutant | -10/Materials Mutant | -10/Subcaves Resources | -11 -10 -10 ----------- Run | Jun Mat Sub Matter Collected 373 | 227 101 45 Remotely . | . . . Salvage Created 475 | 83 341 51 Parts 22 | 1 16 5 Haulers Intercepted 1 | . 1 . Recyclers Shooed 1 | 1 . . Parts Field Recycled . | . . . Retrieved Matter . | . . . Parts Self-Destructed 4 | . . 4 Prevented . | . . . Kills | -11 -10 -10 ------- Run | Jun Mat Sub Combat Hostiles Destroyed 13 | . 9 4 Melee 3 | . 3 . Guns 6 | . 4 2 Cannons 2 | . . 2 Classes Destroyed 7 | 2 4 1 Tunneler 1 | 1 . . Hauler 1 | . 1 . Recycler 1 | 1 . . Operator 1 | . 1 . Swarmer 6 | . 3 3 Grunt 6 | . 6 . Subdweller 1 | . . 1 Best Kill Streak 4 | 2 4 3 Combat Bots Only 4 | . 4 3 Max Kills in Single Turn 1 | 1 1 1 Gunslinging . | . . . Exploded . | . . . Melee 1 | . 1 . Uniques/NPCs Destroyed . | . . . Combat | -11 -10 -10 -------- Run | Jun Mat Sub Damage Taken 913 | . 531 382 Core 261 | . 160 101 Absorbed by Shields . | . . . Core Remaining (%) 100 | 100 . . Volleys Fired 40 | 5 23 12 Largest 2 | 2 2 2 Hottest 125 | 60 60 125 Shots Fired 78 | 10 46 22 Gun 68 | 10 46 12 Cannon . | . . . Launcher . | . . . Special 10 | . . 10 Kinetic 40 | 5 23 12 Thermal 38 | 5 23 10 Explosive . | . . . Electromagnetic . | . . . Robot Hit Streak 15 | 5 11 15 Robot Miss Streak 3 | 3 3 1 Penetration Max . | . . . Secondary Targets . | . . . Shots Hit Robots 67 | 6 41 20 Core Hits 26 | 3 14 9 Critical Kills 1 | . 1 . Critical Parts Destroyed 3 | . 3 . Critical Strikes 4 | . 4 . Smash 4 | . 4 . Melee Attacks 23 | . 12 11 Impact 23 | . 12 11 Slashing . | . . . Piercing . | . . . Sneak Attacks 2 | . 2 . Combat Hostiles . | . . . Follow-up Attacks 1 | . 1 . Damage Inflicted 1047 | 57 698 292 Guns 476 | 57 310 109 Cannons . | . . . Explosions . | . . . Melee 472 | . 388 84 Ramming . | . . . Kinetic 248 | 22 117 109 Thermal 327 | 35 193 99 Explosive . | . . . Electromagnetic . | . . . Impact 472 | . 388 84 Slashing . | . . . Piercing . | . . . Highest Corruption . | . . . Average Corruption . | . . . Corruption Purged . | . . . Corruption Blocked . | . . . Overload Shots . | . . . Overflow Damage 95 | . 95 . Projectiles . | . . . Explosions . | . . . Melee 95 | . 95 . Knockbacks . | . . . Impact . | . . . Kinetic . | . . . Secondary . | . . . Self-Inflicted Damage . | . . . Shots . | . . . Rammed . | . . . Targets Rammed . | . . . Kicked . | . . . Crushed . | . . . Highest Temperature 121 | 40 121 3 Average Temperature 32 | 26 38 2 Received Heat Transfer 285 | . 243 42 Siege Activations . | . . . Robots Corrupted . | . . . Combat Hostiles . | . . . Parts Fried 3 | . 3 . Impact Corruptions 6 | . 6 . Robots Melted . | . . . Combat Hostiles . | . . . Parts Melted . | . . . Heat Transferred 1220 | 75 425 720 Parts Sabotaged . | . . . Parts Stolen . | . . . Parts Stripped . | . . . Power Chain Reactions . | . . . Missiles Intercepted . | . . . Alert | -11 -10 -10 ------- Run | Jun Mat Sub Peak Influence 258 | 10 258 . Initial 6 | . 6 . Average 79 | 4 91 . Maximum Alert Level 1 | . 1 . Low Security (%) 82 | 100 79 . Level 1 17 | . 20 . Level 2 . | . . . Level 3 . | . . . Level 4 . | . . . Level 5 . | . . . High Security . | . . . Max Security . | . . . Squads Dispatched 2 | . 2 . Investigation 1 | . 1 . Extermination . | . . . Reinforcement 1 | . 1 . Assault . | . . . Garrison . | . . . Intercept . | . . . Searches Triggered . | . . . Construction Impeded . | . . . Haulers Reinforced . | . . . Active Scanning Responses . | . . . Cargo Convoy Interrupts . | . . . Stealth | -11 -10 -10 --------- Run | Jun Mat Sub Distress Signals 2 | . 2 . Communications Jammed . | . . . Distress Signals . | . . . Times Spotted 19 | . 14 5 Peak Tracking Total 6 | . 6 3 Tactical Retreats . | . . . Traps | -11 -10 -10 ------- Run | Jun Mat Sub Traps Triggered 1 | . 1 . Indirectly . | . . . Trap Hack Attempts . | . . . Triggered . | . . . Disarmed . | . . . Reprogrammed . | . . . Reused . | . . . Traps Extracted . | . . . Installed . | . . . Triggered . | . . . Machines | -11 -10 -10 ---------- Run | Jun Mat Sub Machines Disabled . | . . . Max in Single Turn . | . . . Machines Repaired . | . . . Machines Sabotaged . | . . . Overloaded Fab Kills . | . . . Hacking | -11 -10 -10 --------- Run | Jun Mat Sub Machines Accessed 1 | . 1 . Terminals 1 | . 1 . Fabricators . | . . . Repair Stations . | . . . Recycling Units . | . . . Scanalyzers . | . . . Garrison Access . | . . . Total Hacks 2 | . 2 . Successful 1 | . 1 . Failed 1 | . 1 . Catastrophic . | . . . Database Lockouts . | . . . Manual 2 | . 2 . Terminals 2 | . 2 . Fabricators . | . . . Repair Stations . | . . . Recycling Units . | . . . Scanalyzers . | . . . Garrison Access . | . . . Terminal Hacks . | . . . Fabricator Hacks . | . . . Repair Station Hacks . | . . . Recycling Unit Hacks . | . . . Scanalyzer . | . . . Garrison Access Hacks . | . . . Unauthorized Hacks 1 | . 1 . Terminals 1 | . 1 . Botnet 1 | . 1 . Fabricators . | . . . Repair Stations . | . . . Recycling Units . | . . . Scanalyzers . | . . . Garrison Access . | . . . Data Cores Recovered . | . . . Used . | . . . Hacking Detections 1 | . 1 . Full Trace Events . | . . . Feedback Events . | . . . Feedback Blocked . | . . . Robot Schematics Acquired . | . . . Robots Built . | . . . Authchips . | . . . Time . | . . . Total Robot Build Rating . | . . . Part Schematics Acquired . | . . . Parts Built . | . . . Authchips . | . . . Time . | . . . Total Part Build Rating . | . . . Parts Repaired . | . . . Time . | . . . Parts Recycled . | . . . Recycled Matter . | . . . Retrieved Matter . | . . . Retrieved Components . | . . . Parts Scanalyzed . | . . . Part Schematics Acquired . | . . . Parts Damaged . | . . . Bothacking | -11 -10 -10 ------------ Run | Jun Mat Sub Used RIF Installer . | . . . Robots Hacked . | . . . Non-combat . | . . . Combat . | . . . Robot Hacks Applied . | . . . Relay Couplers Released . | . . . Fabnet Peak Effective % . | . . . Robots Rewired . | . . . Allies Hacked . | . . . Hacks Repelled . | . . . Allies | -11 -10 -10 -------- Run | Jun Mat Sub Total Allies . | . . . Largest Group . | . . . Highest-Rated Group . | . . . Highest-Rated Ally . | . . . Total Orders . | . . . Ally Attacks . | . . . Total Damage . | . . . Kills . | . . . Allies Corrupted . | . . . Allies Melted . | . . . Intel | -11 -10 -10 ------- Run | Jun Mat Sub Robot Analysis Total . | . . . Derelict Logs Recovered . | . . . Drone Launches . | . . . Drone Recoveries . | . . . Exploration | -11 -10 -10 ------------- Run | Jun Mat Sub Turns Passed 1192 | 96 616 480 Spaces Moved 595 | 45 309 241 Core 4 | 4 . . Treads 590 | 41 309 240 Legs . | . . . Wheels 1 | . . 1 Hover . | . . . Flight . | . . . Fastest Speed 50 | 50 160 95 Average Speed 159 | 150 160 159 Slowest Speed 160 | 160 160 160 Overloaded Moves . | . . . Propulsion Burnouts . | . . . Robots Hopped . | . . . Cave-ins Triggered . | . . . Exploration Rate (%) 19 | 3 38 18 Regions Visited 2 Branch Regions 1 Pre-discovered Areas . | . . . Known Exits Taken . | . . . Unknown Exits Taken 2 | 1 1 . Scrap Searched 2 | . . 2 Spaces Dug . | . . . Terrain Destroyed . | . . . Melee . | . . . Projectile . | . . . AOE . | . . . Terrain Rammed . | . . . Walls Destroyed . | . . . Machines Disabled . | . . . Actions | -11 -10 -10 --------- Run | Jun Mat Sub Total 716 | 61 371 284 Wait 27 | . 19 8 Move 593 | 44 308 241 Hop . | . . . Pick Up 8 | 5 3 . Fast Attach 11 | 6 2 3 Attach 2 | . . 2 Detach . | . . . Swap 6 | 1 1 4 Drop 7 | . 4 3 Fire 40 | 5 23 12 Melee 22 | . 11 11 Ram . | . . . Kick . | . . . Crush . | . . . Escape Stasis . | . . . Rewire . | . . . Trap . | . . . Miscellaneous . | . . . Route ------- -11/Junkyard -10/Materials (discovered 2 exits: [*Mat] / [*Sub]) -10/Subcaves History --------- Turn | Location | Event 11 | -11/Junkyard | Discovered new exit (range 13) 97 | -11/Junkyard | Entered Materials 317 | -10/Materials | Build established: Mutant 363 | -10/Materials | Core integrity fell below 50% 404 | -10/Materials | Discovered new exit (range 11) 541 | -10/Materials | Discovered new exit (range 7) 713 | -10/Materials | Entered Subcaves 875 | -10/Subcaves | Shifting Twisted Machinery released Battle Rifle 877 | -10/Subcaves | Shifting Twisted Machinery released Sub. Laser 972 | -10/Subcaves | Shifting Twisted Machinery released Battle Rifle 986 | -10/Subcaves | Shifting Twisted Machinery released Sub. Power Source 1176 | -10/Subcaves | Core integrity fell below 20% 1193 | -10/Subcaves | Destroyed by IN-WXM(R) with Subdweller Machine Gun Last Messages --------------- 00901_ Ion Engine destroyed. 00905_ Flight Unit fries itself beyond repair. 00905_ Lgt. Assault Rifle fries itself beyond repair. 00905_ S-10 Pest destroyed. 00906_ Lgt. Assault Rifle fries itself beyond repair. 00909_ Acquired 6 matter. 00928_ Searching scrap... 00928_ Found Sub. Monowheel. 00928_ Found 38 Matter. 00946_ LO-FN8(O) collects matter. 00947_ LO-FN8(O) puts together Battle Rifle. 00951_ LO-FN8(O) collects matter. Battle Rifle falls loose from the Twisted Machinery. Sub. Power Source falls loose from the Twisted Machinery. 01020_ Lgt. Treads destroyed. 01026_ EY-SAT(R) destroyed. 01032_ Dropped Battle Rifle. 01041_ Acquired Sub. Power Source. 01068_ Acquired 16 matter. 01181_ Lgt. Treads destroyed. Map ----- +----------------------------------------------------+ | ??????????????????????????????????????????? | | ??????????????????????????????????????????? | | ??????????????????????????????????????????? | | ??????????????????????????????????????????? | | ??????????????????????????????????????????? | | ??????????????????????????????????????????? | | ??????????????????????????????????????????? | | ??????????????????????????????????????????? | | ??????????????????????????????????????????? | | ??????????????###?????????????????????????? | | ?????????????## ##????????????????????????? | | ?????????????# ##???????????????????????? | | ?????????????# ####????????????????????? | | ?????????????## ###??????????????????? | | ??????????????## ##?????????????????? | | ??????????????## #?????????????????? | | ??????????????# #?????????????????? | | ??????????????# #?????????????????? | | ??????????????## #####?????????????? | | ???????????????## ## #?????????????? | | ????????????????# #?????????????? | | ????????????????# #?????????????? | | ????????????????## ## #?????????????? | | ?????????????????###### #?????????????? | | ?????????????? ???????# #?????????????? | | ?????????????? ???????# @###?????????????? | | ?????????????? ??????# R #???????????????? | | ??????????????# ??????## ##??????????????? | | ??????????????# ???????# #??????????????? | | ?????????????## ???????# #??????????????? | | ?????????????# #?###?## #??????????????? | | ?????????????# ## ### ##?????????????? | | ??????????????# ## #?????????????? | | ???????????????# ### #?????????????? | | ??????????????## ### #?????????????? | | ??????????????# ## ##?????????????? | | ???????????????# ## #??????????????? | | ???????????????## ####??????????????? | | ????????????????# #?????????????????? | | ???????????????## ## #?????????????????? | | ???????????##### ""### ##?????????????????? | | ??????????## "" #"""####??????????????????? | | ??????????# " """###???###??????????????? | | ??????????# "#"""""##?## #??????????????? | | ??????????# "#"""[""### #??????????????? | | ??????????# """" & " ##??????????????? | | ??????????#"# ""="&"" "" "#???????????????? | | ??????????### "##""""""" #??????????????? | | ????????????## #####"" [ #??????????????? | | ????????????# ####" # "#??????????????? | +----------------------------------------------------+ Best States ------------- Heat Dissipation 25 Energy Generation 15 Energy Capacity 250 Matter Stores 300 Matter Capacity 300 Sight Range 16 Terrain Scan Density 10 Evasion (%) 40 Recoil Reduction 2 Item Schematics ----------------- None Robot Schematics ------------------ None Fabricated ------------ Nothing Alien Tech Used ----------------- None Achievements -------------- None Challenges ------------ None Game ------ Seed ContainmentPowerProjector Manual? 0 Play Time 00:08:52 Cumulative 662.6 hours Start 2023.06.28 @ 10:38:29 End 2023.06.29 @ 13:09:47 Sessions 3 Manual Loads 0 Difficulty Rogue Special Mode None Game No. 665 Rogue 664 Adventurer 0 Explorer 1 Win Type - Total 31 Types 22/0/6/3/0/0/0/0/0 Lore% 84 Gallery% 90 Achievement% 79 Wizard Run 0 Options --------- ASCII 0 Keyboard 1 Movement Vi Keybinds 0 Fullscreen 1 Font 18/SmallcapsGlow Map View 76x50 Tactical HUD 1 Map Filters NONE Filters NONE Steam 1 RUN: c431c371-5d12-4ad8-94ee-da9bbd7701e4